bitfinex-derivatives/quotes_BTCF0:USTF0_20251118
["timestamp","ask_amount","ask_price","bid_price","bid_amount"]
[1763439336673,0.02241,90302.0,90301.0,1.5]
[1763439336863,0.04351,90302.0,90301.0,1.5]
[1763439338667,0.07235422,90302.0,90301.0,1.5]
[1763439338868,0.07235422,90302.0,90291.0,0.00012712]
[1763439338869,0.04351,90292.0,90291.0,0.00012712]
[1763439339077,0.07135924,90292.0,90291.0,0.00012712]
[1763439339772,0.07035924,90292.0,90291.0,0.00012712]
[1763439339966,0.07035924,90292.0,90291.0,1.50012712]
[1763439340162,0.07035924,90292.0,90291.0,1.50112712]
[1763439340777,0.07035924,90292.0,90291.0,1.50012712]
[1763439342180,0.10995907,90292.0,90291.0,1.50012712]
[1763439342385,0.00219803,90290.0,90264.0,0.0301]
[1763439342679,0.03951299,90282.0,90276.0,0.03549]
[1763439342882,0.03951299,90282.0,90277.0,1.5]
[1763439343281,0.03951299,90280.0,90277.0,1.5]
[1763439343475,0.06836223,90279.0,90277.0,1.5]
[1763439343676,0.06836223,90278.0,90277.0,1.5]
[1763439343879,0.196098,90278.0,90264.0,0.00827]
[1763439344078,0.06145442,90270.0,90265.0,0.04469]
[1763439344379,0.08810563,90269.0,90266.0,1.5]
[1763439344577,0.08810563,90269.0,90264.0,0.00827]
[1763439344578,0.2541263,90269.0,90264.0,0.00827]
[1763439344792,0.05925639,90266.0,90264.0,0.00827]
[1763439344988,0.02894078,90265.0,90264.0,0.00827]
[1763439345176,0.02894078,90265.0,90264.0,0.0301]
[1763439345373,9.154e-05,90265.0,90264.0,0.0301]
[1763439345573,0.02894078,90265.0,90264.0,0.00827]
[1763439345778,0.00219803,90260.0,90240.0,0.17554062]
[1763439345977,0.02884924,90259.0,90253.0,1.5]
[1763439346186,0.00219803,90260.0,90259.0,0.04469]
[1763439346389,0.02887464,90260.0,90259.0,0.04469]
[1763439346575,0.00025769,90265.0,90264.0,0.05835]
[1763439346974,0.02912689,90265.0,90264.0,0.05835]
[1763439347884,0.02912689,90265.0,90264.0,0.01366]
[1763439348088,0.02912689,90265.0,90264.0,0.05835]
[1763439348788,0.02912689,90265.0,90264.0,0.01366]
[1763439349184,0.00219803,90260.0,90253.0,1.5]
[1763439349481,0.0288692,90259.0,90253.0,1.5]
[1763439349683,0.0288692,90258.0,90253.0,1.5]
[1763439349885,0.0288692,90257.0,90253.0,1.5]
[1763439350078,0.0288692,90256.0,90253.0,1.5]
[1763439350389,0.00219803,90260.0,90259.0,0.04469]
[1763439350586,0.00219803,90260.0,90216.0,0.01366]
[1763439350794,0.059132,90249.0,90220.0,0.16188062]
[1763439351089,0.00219803,90240.0,90229.0,1.5]
[1763439351290,0.02886149,90239.0,90229.0,1.5]
[1763439351485,0.02886149,90238.0,90229.0,1.5]
[1763439351689,0.25294108,90239.0,90238.0,0.04469]
[1763439351889,0.11566071,90239.0,90238.0,0.04469]
[1763439352085,0.02885278,90239.0,90238.0,0.04469]
[1763439352278,0.11576718,90239.0,90229.0,1.66188062]
[1763439352480,0.02885278,90238.0,90237.0,0.04469]
[1763439352986,0.00016615,90244.0,90237.0,0.04469]
[1763439353187,0.00016615,90244.0,90229.0,1.66188062]
[1763439353188,0.00442481,90267.0,90266.0,0.04469]
[1763439353377,0.059132,90279.0,90275.0,0.04469]
[1763439353583,0.02241,90276.0,90275.0,0.04469]
[1763439354189,0.0435992,90276.0,90275.0,0.02183]
[1763439354392,0.0435992,90276.0,90266.0,0.00016615]
[1763439355594,0.04351,90267.0,90266.0,0.00016615]
[1763439356282,0.04351,90267.0,90266.0,0.02199615]
[1763439356482,0.00219803,90270.0,90269.0,0.04469]
[1763439357098,0.00219803,90270.0,90266.0,0.00016615]
[1763439357099,0.04498803,90270.0,90266.0,0.00016615]
[1763439357287,0.04279,90267.0,90240.0,0.16188062]
[1763439357488,0.00219803,90260.0,90259.0,0.02213]
[1763439357682,0.00219803,90260.0,90259.0,0.04374]
[1763439357891,0.00219803,90260.0,90259.0,0.05748]
[1763439358194,0.002,90270.0,90269.0,0.04374]
[1763439358392,0.00219803,90270.0,90269.0,0.04374]
[1763439359387,0.02334803,90270.0,90269.0,0.04374]
[1763439360087,0.02419547,90272.0,90271.0,0.04374]
[1763439360294,0.02419547,90272.0,90264.0,0.26924]
[1763439360295,0.00999999,90330.0,90296.0,0.04374]
[1763439360296,0.07900852,90297.0,90296.0,0.04374]
[1763439360489,0.08120655,90310.0,90309.0,0.04374]
[1763439360689,0.07900852,90314.0,90313.0,0.04374]
[1763439360894,0.07900852,90327.0,90326.0,0.04374]
[1763439361100,0.16593437,90314.0,90255.0,0.01366]
[1763439361287,0.002,90272.0,90271.0,0.04374]
[1763439361589,0.002,90272.0,90271.0,0.05166]
[1763439361788,0.00016617,90281.0,90271.0,0.31314]
[1763439361995,0.00019803,90280.0,90271.0,0.31314]
[1763439362298,0.04279,90271.0,90270.0,0.002]
[1763439362497,0.04279,90271.0,90270.0,0.09056]
[1763439363296,0.07918513,90274.0,90273.0,0.04374]
[1763439363598,0.00016617,90281.0,90270.0,0.002]
[1763439363892,0.0009307,90280.0,90273.0,0.21572]
[1763439364095,0.0009307,90280.0,90270.0,0.002]
[1763439364295,0.04279,90271.0,90270.0,0.002]
[1763439364490,0.04279,90271.0,90270.0,0.0116]
[1763439365197,0.07080134,90271.0,90270.0,0.002]
[1763439365399,0.07080134,90271.0,90270.0,0.27172]
[1763439365793,0.07080134,90271.0,90270.0,0.27168]
[1763439367392,0.02801134,90271.0,90270.0,0.04574]
[1763439367606,0.07080134,90271.0,90270.0,0.29377]
[1763439367796,0.07080134,90271.0,90262.0,0.00016617]
[1763439367797,0.04279,90263.0,90262.0,0.00016617]
[1763439367999,0.07080134,90263.0,90262.0,0.00016617]
[1763439368303,0.07080134,90263.0,90262.0,0.26980617]
[1763439368493,0.12197513,90263.0,90262.0,0.26980617]
[1763439368695,0.07080134,90263.0,90262.0,0.26980617]
[1763439368998,0.07080134,90263.0,90262.0,0.00016617]
[1763439369199,0.07080134,90263.0,90262.0,0.26980617]
[1763439370396,0.07180134,90263.0,90262.0,0.26980617]
[1763439370805,0.07080134,90263.0,90262.0,0.26980617]
[1763439371002,0.07180134,90263.0,90262.0,0.26980617]
[1763439371302,0.07180134,90263.0,90262.0,0.26972617]
[1763439371702,0.02901134,90263.0,90262.0,0.26956]
[1763439371900,0.04279,90261.0,90260.0,0.002]
[1763439372104,0.07080134,90261.0,90260.0,0.27156]
[1763439372297,0.07080134,90261.0,90260.0,0.002]
[1763439372496,0.07080134,90261.0,90260.0,0.27156]
[1763439373205,0.07180134,90261.0,90260.0,0.27156]
[1763439373602,0.07080134,90261.0,90260.0,0.27156]
[1763439373901,0.01367,90259.0,90240.0,0.00687]
[1763439374102,0.0009307,90250.0,90240.0,0.002]
[1763439374299,0.10758055,90249.0,90241.0,0.26956]
[1763439374496,0.10758055,90248.0,90240.0,0.002]
[1763439374696,0.0009307,90250.0,90229.0,1.5]
[1763439374697,0.01367,90240.0,90229.0,1.5]
[1763439374902,0.10759262,90239.0,90237.0,0.04374]
[1763439375094,0.0009307,90240.0,90237.0,0.04374]
[1763439375095,0.02801134,90238.0,90237.0,0.04374]
[1763439376094,0.04916134,90238.0,90237.0,0.04374]
[1763439376301,0.07080134,90238.0,90237.0,0.04374]
[1763439376500,0.07080134,90238.0,90237.0,0.26952]
[1763439377908,0.07080134,90238.0,90237.0,0.26948]
[1763439378097,0.07080134,90238.0,90229.0,1.5]
[1763439378296,0.04279,90231.0,90230.0,0.002]
[1763439378507,0.04279,90231.0,90230.0,0.27148]
[1763439378508,0.07080134,90231.0,90230.0,0.27148]
[1763439379035,0.0450407,90230.0,90229.0,1.5]
[1763439379202,0.07305204,90230.0,90229.0,1.5]
[1763439379402,0.0549,90228.0,90206.0,0.00027714]
[1763439379600,0.02225,90211.0,90210.0,0.002]
[1763439379805,0.07212134,90211.0,90210.0,0.27148]
[1763439380004,0.07212134,90211.0,90210.0,0.002]
[1763439380207,0.07212134,90211.0,90192.0,0.00687]
[1763439380208,0.04411,90207.0,90192.0,0.00687]
[1763439380507,0.0009307,90200.0,90193.0,1.5]
[1763439380706,0.02225,90195.0,90194.0,0.26952]
[1763439380899,0.02225,90195.0,90194.0,0.02202]
[1763439381099,0.05026134,90195.0,90194.0,0.2915]
[1763439381416,0.04411,90194.0,90193.0,1.5]
[1763439381602,0.07212134,90194.0,90193.0,1.76948]
[1763439382011,0.07112134,90194.0,90193.0,1.76948]
[1763439382710,0.02801134,90194.0,90193.0,1.77048]
[1763439383303,0.02801134,90194.0,90193.0,1.501]
[1763439383613,0.02801134,90194.0,90193.0,1.77048]
[1763439385104,0.02801134,90194.0,90193.0,1.76948]
[1763439385299,0.02801134,90194.0,90193.0,1.77048]
[1763439386108,8.77e-05,90206.0,90205.0,0.04355]
[1763439386414,0.03966908,90222.0,90219.0,0.04355]
[1763439386614,0.03966908,90225.0,90219.0,0.31303]
[1763439386908,0.03966908,90229.0,90228.0,0.04501]
[1763439387111,0.03957653,90236.0,90235.0,0.04501]
[1763439387306,0.06184653,90236.0,90235.0,0.30121]
[1763439387512,0.22828996,90236.0,90235.0,0.30121]
[1763439388212,0.21081343,90236.0,90235.0,0.2562]
[1763439388420,0.04437,90231.0,90230.0,0.02457]
[1763439388612,0.29283077,90236.0,90230.0,0.27597]
[1763439388921,0.08781081,90236.0,90230.0,0.27597]
[1763439389108,0.1662946,90235.0,90230.0,0.27597]
[1763439389511,0.1662946,90235.0,90230.0,0.04701]
[1763439389704,0.1662946,90235.0,90226.0,0.00016626]
[1763439389705,0.04437,90227.0,90226.0,0.00016626]
[1763439389910,0.0009307,90230.0,90229.0,0.04501]
[1763439391214,0.0453007,90230.0,90229.0,0.04501]
[1763439391513,0.0009307,90230.0,90229.0,0.04501]
[1763439392213,0.0232007,90230.0,90229.0,0.04501]
[1763439392610,0.04437,90227.0,90226.0,0.00016626]
[1763439393910,0.03957653,90229.0,90226.0,0.00016626]
[1763439393911,0.03957653,90229.0,90228.0,0.04501]
[1763439394108,0.0009307,90230.0,90229.0,0.04501]
[1763439394717,0.03957653,90239.0,90237.0,0.04501]
[1763439394919,0.03957653,90247.0,90244.0,0.04501]
[1763439395115,0.03957653,90249.0,90244.0,0.04501]
[1763439395311,0.03957653,90253.0,90244.0,0.04501]
[1763439395510,0.04453626,90245.0,90244.0,0.04501]
[1763439397415,0.04437,90241.0,90240.0,0.26124]
[1763439397822,0.04437,90241.0,90240.0,0.002]
[1763439398019,0.04437,90241.0,90216.0,0.01331]
[1763439398020,0.02227,90227.0,90226.0,0.04517626]
[1763439398221,0.0009307,90230.0,90229.0,0.02257]
[1763439398424,0.02752419,90230.0,90229.0,0.31445]
[1763439398823,0.02752419,90230.0,90229.0,0.04501]
[1763439399220,0.02659349,90230.0,90229.0,0.31445]
[1763439399427,0.03974279,90245.0,90244.0,0.04501]
[1763439399630,0.0663729,90245.0,90244.0,0.04501]
[1763439399925,0.03957653,90255.0,90254.0,0.04108]
[1763439400121,0.03957653,90256.0,90255.0,0.04108]
[1763439400316,0.01374,90259.0,90255.0,0.04108]
[1763439400525,0.02227,90256.0,90255.0,0.04108]
[1763439401129,0.04437,90256.0,90255.0,0.02054]
[1763439401830,0.03970573,90258.0,90257.0,0.04108]
[1763439402817,0.0009307,90260.0,90259.0,0.04108]
[1763439403525,0.0453007,90260.0,90247.0,0.26948]
[1763439403726,0.01374,90259.0,90250.0,0.002]
[1763439403935,0.01374,90259.0,90251.0,0.2694]
[1763439404130,0.02227,90251.0,90250.0,0.02254]
[1763439404325,0.03970573,90266.0,90264.0,0.04108]
[1763439404831,0.04437,90256.0,90246.0,0.00016626]
[1763439405023,0.04437,90247.0,90246.0,0.00016626]
[1763439407026,0.08407573,90247.0,90246.0,0.00016626]
[1763439407734,0.04537,90247.0,90246.0,0.00016626]
[1763439408037,0.08507573,90247.0,90246.0,0.00016626]
[1763439408225,0.08407573,90247.0,90246.0,0.00016626]
[1763439408426,0.01374,90246.0,90218.0,0.00012553]
[1763439408628,0.0009307,90230.0,90220.0,0.002]
[1763439409135,0.0009307,90230.0,90229.0,0.02054]
[1763439409328,0.0453007,90230.0,90229.0,0.02054]
[1763439409524,0.0453007,90230.0,90229.0,0.01954]
[1763439409728,0.0453007,90230.0,90229.0,0.03908]
[1763439409932,0.0009307,90230.0,90229.0,0.03908]
[1763439410532,0.0232007,90230.0,90229.0,0.03908]
[1763439410733,0.0453007,90230.0,90229.0,0.03908]
[1763439410929,0.0453007,90230.0,90220.0,0.20390541]
[1763439411128,0.0453007,90230.0,90220.0,0.00216626]
[1763439411330,0.04437,90221.0,90220.0,0.00216626]
[1763439411531,0.04437,90221.0,90180.0,0.20373915]
[1763439411532,0.01374,90207.0,90180.0,0.20373915]
[1763439411735,0.0146707,90220.0,90180.0,0.20373915]
[1763439411736,0.03971493,90212.0,90211.0,0.03934]
[1763439412036,0.03971493,90212.0,90190.0,0.20373915]
[1763439412037,0.0009307,90210.0,90190.0,0.20373915]
[1763439412231,0.04437,90201.0,90200.0,0.002]
[1763439412432,0.07183897,90201.0,90200.0,0.002]
[1763439412631,0.0719347,90201.0,90200.0,0.002]
[1763439413429,0.0719347,90201.0,90170.0,0.20373915]
[1763439413430,0.0009307,90200.0,90170.0,0.20373915]
[1763439413630,0.05811,90181.0,90180.0,0.002]
[1763439413826,0.08557897,90181.0,90180.0,1.502]
[1763439414030,0.08557897,90181.0,90180.0,1.5]
[1763439414031,0.08566807,90181.0,90180.0,1.5]
[1763439414230,0.04437,90167.0,90142.0,0.00665]
[1763439414441,0.04437,90159.0,90144.0,0.08772]
[1763439414631,0.07196855,90159.0,90149.0,0.20373915]
[1763439414834,0.07196855,90159.0,90142.0,0.00665]
[1763439415235,0.07196855,90159.0,90143.0,1.5]
[1763439416437,0.0018866,90150.0,90143.0,1.5]
[1763439416652,0.02746897,90149.0,90148.0,0.04501]
[1763439417249,0.00012958,90159.0,90158.0,0.04458]
[1763439417556,0.02748799,90159.0,90158.0,0.04458]
[1763439418257,0.00012958,90159.0,90158.0,0.04458]
[1763439418954,0.00016636,90168.0,90167.0,0.04458]
[1763439419155,0.02752105,90168.0,90167.0,0.04458]
[1763439419543,0.03968343,90201.0,90170.0,0.0010441]
[1763439419743,0.0018866,90190.0,90180.0,0.20373915]
[1763439419959,0.04608,90181.0,90180.0,0.0010441]
[1763439421050,0.08949765,90184.0,90180.0,0.0456241]
[1763439421251,0.00014227,90189.0,90188.0,0.04458]
[1763439421856,0.01388,90216.0,90188.0,0.3235]
[1763439422152,0.01388,90230.0,90188.0,0.3235]
[1763439422153,0.01388,90230.0,90209.0,0.04458]
[1763439422348,0.01388,90230.0,90202.0,0.00752]
[1763439422349,0.0157666,90230.0,90220.0,0.20478325]
[1763439422548,0.04608,90221.0,90220.0,0.0010441]
[1763439423456,0.04608,90221.0,90211.0,0.16263233]
[1763439423457,0.04608,90212.0,90211.0,0.00016626]
[1763439424453,0.01404626,90230.0,90211.0,0.00016626]
[1763439424454,0.05372969,90230.0,90211.0,0.04474626]
[1763439424655,0.01593286,90230.0,90220.0,0.16351017]
[1763439424952,0.00205286,90230.0,90220.0,0.16351017]
[1763439425460,0.04608,90221.0,90220.0,0.0010441]
[1763439427058,0.04608,90212.0,90211.0,0.00016626]
[1763439429755,0.05372969,90230.0,90222.0,0.04458]
[1763439429951,0.01593286,90230.0,90222.0,0.04458]
[1763439430551,0.00205286,90230.0,90229.0,0.04458]
[1763439430753,0.00016626,90230.0,90229.0,0.04458]
[1763439430958,0.03968343,90257.0,90256.0,0.02325]
[1763439431157,0.0018866,90260.0,90256.0,0.02325]
[1763439431554,0.16536021,90271.0,90265.0,0.02325]
[1763439431555,0.03968343,90266.0,90265.0,0.02325]
[1763439431753,0.0732721,90266.0,90260.0,0.0010441]
[1763439431952,0.0271921,90265.0,90260.0,0.0010441]
[1763439432153,0.0271921,90264.0,90263.0,0.04458]
[1763439432556,0.0500521,90264.0,90260.0,0.0010441]
[1763439432755,0.0271921,90263.0,90260.0,0.0010441]
[1763439433056,0.0271921,90262.0,90261.0,0.04458]
[1763439434459,0.0271921,90262.0,90260.0,0.0010441]
[1763439434460,0.02286,90261.0,90260.0,0.0010441]
[1763439434763,0.02286,90261.0,90256.0,0.16246607]
[1763439434764,0.04608,90257.0,90256.0,0.16246607]
[1763439434953,0.04608,90257.0,90254.0,0.00016626]
[1763439434954,0.05996,90255.0,90254.0,0.00016626]
[1763439435154,0.05996,90255.0,90254.0,0.02341626]
[1763439435155,0.02718456,90255.0,90254.0,0.02341626]
[1763439435458,0.08714456,90255.0,90254.0,0.00016626]
[1763439436365,0.02286,90241.0,90240.0,0.16246607]
[1763439436554,0.0157666,90240.0,90200.0,0.1109968]
[1763439436753,0.02735425,90239.0,90220.0,0.16351017]
[1763439436954,0.0018866,90230.0,90220.0,0.16351017]
[1763439437160,0.02286,90221.0,90220.0,0.16351017]
[1763439437363,0.04608,90221.0,90220.0,0.0010441]
[1763439438262,0.0018866,90220.0,90211.0,0.16263233]
[1763439438470,0.02736545,90219.0,90211.0,0.16263233]
[1763439438762,0.0018866,90220.0,90211.0,0.16263233]
[1763439438953,0.02736538,90219.0,90211.0,0.16263233]
[1763439439154,0.0018866,90220.0,90211.0,0.16263233]
[1763439439155,0.02736538,90218.0,90211.0,0.16263233]
[1763439439459,0.0018866,90220.0,90219.0,0.0446]
[1763439439654,0.02925216,90220.0,90219.0,0.0446]
[1763439440260,0.02736556,90220.0,90219.0,0.0446]
[1763439440460,0.00016626,90230.0,90229.0,0.0446]
[1763439440760,0.02941845,90230.0,90229.0,0.0446]
[1763439441866,0.05052845,90230.0,90220.0,0.16246607]
[1763439442066,0.04374,90221.0,90220.0,0.0010441]
[1763439442263,0.04374,90212.0,90211.0,0.00016626]
[1763439442768,0.07110785,90212.0,90211.0,0.00016626]
[1763439443263,0.0018866,90210.0,90190.0,0.16246607]
[1763439443460,0.04374,90191.0,90190.0,0.16351017]
[1763439443664,0.04374,90191.0,90190.0,0.0010441]
[1763439443863,0.02111,90182.0,90181.0,0.16246607]
[1763439444167,0.0018866,90180.0,90172.0,0.00016626]
[1763439444365,0.04374,90173.0,90150.0,0.16246607]
[1763439444554,0.0153666,90160.0,90150.0,0.16351017]
[1763439444759,0.02738425,90159.0,90150.0,0.16351017]
[1763439445064,0.02738425,90158.0,90150.0,0.16351017]
[1763439445367,0.04374,90151.0,90150.0,0.0010441]
[1763439445564,0.02111,90151.0,90150.0,0.0010441]
[1763439445766,0.00010031,90157.0,90150.0,0.0456441]
[1763439445959,0.027377,90156.0,90150.0,0.0456441]
[1763439446161,0.00010031,90157.0,90155.0,0.02218]
[1763439446360,0.02111,90151.0,90150.0,0.0010441]
[1763439446560,0.00010031,90157.0,90150.0,0.0010441]
[1763439446762,0.02738661,90156.0,90150.0,0.0010441]
[1763439446959,0.02738661,90155.0,90150.0,0.0010441]
[1763439447267,0.02738661,90154.0,90150.0,0.0010441]
[1763439447457,0.02738661,90153.0,90152.0,0.0435]
[1763439447854,0.02738661,90153.0,90150.0,0.0010441]
[1763439448060,0.00010031,90157.0,90150.0,0.0010441]
[1763439448061,0.04427,90151.0,90150.0,0.0010441]
[1763439448369,0.07166317,90151.0,90150.0,0.0010441]
[1763439449165,0.04427,90151.0,90150.0,0.0010441]
[1763439450469,0.00010031,90157.0,90156.0,0.02201]
[1763439450871,0.00010031,90157.0,90156.0,0.04333]
[1763439451264,0.05963201,90185.0,90162.0,0.1543748]
[1763439451265,0.03968343,90185.0,90162.0,0.1543748]
[1763439451569,0.02735621,90184.0,90183.0,0.04333]
[1763439451765,0.02319,90184.0,90180.0,0.0010441]
[1763439452162,0.0018866,90190.0,90180.0,0.0010441]
[1763439452362,0.02734451,90189.0,90180.0,0.0010441]
[1763439452667,0.02734451,90188.0,90180.0,0.0010441]
[1763439452870,0.02734451,90187.0,90186.0,0.02201]
[1763439453262,0.02734146,90187.0,90176.0,0.00016636]
[1763439453462,0.0018866,90190.0,90180.0,0.0010441]
[1763439453662,0.04427,90181.0,90180.0,0.0010441]
[1763439454068,0.04427,90177.0,90176.0,0.00016636]
[1763439454266,0.02319,90161.0,90160.0,0.16246607]
[1763439454458,0.04427,90161.0,90160.0,0.0010441]
[1763439455061,0.04427,90152.0,90151.0,0.16246607]
[1763439455266,0.02319,90152.0,90150.0,0.0010441]
[1763439455576,0.04427,90151.0,90150.0,0.0010441]
[1763439457874,0.05806,90144.0,90130.0,0.16246607]
[1763439458169,0.05806,90144.0,90140.0,0.16246607]
[1763439458575,0.05806,90144.0,90130.0,0.16246607]
[1763439459973,0.08536164,90144.0,90130.0,0.16246607]
[1763439460175,0.05806,90144.0,90130.0,0.16246607]
[1763439460865,0.15753993,90140.0,90130.0,0.16246607]
[1763439461069,0.04427,90127.0,90120.0,0.16246607]
[1763439461268,0.04427,90127.0,90109.0,0.00011795]
[1763439461269,0.04427,90127.0,90110.0,0.16246607]
[1763439461878,0.04427,90127.0,90126.0,1.50027739]
[1763439462372,0.00219803,90130.0,90126.0,1.50027739]
[1763439462580,0.00219803,90130.0,90129.0,0.02201]
[1763439462874,0.00016636,90136.0,90135.0,0.02201]
[1763439463071,0.00016636,90136.0,90135.0,0.04333]
[1763439463267,0.04427,90127.0,90126.0,1.50027739]
[1763439463472,0.00016636,90136.0,90126.0,1.50027739]
[1763439463473,0.00219803,90130.0,90129.0,0.04333]
[1763439463677,0.00016636,90136.0,90135.0,0.02201]
[1763439463981,0.00016636,90136.0,90135.0,0.04333]
[1763439464170,0.01379,90135.0,90126.0,1.50027739]
[1763439464377,0.02731336,90134.0,90126.0,1.66274346]
[1763439465077,0.00016636,90136.0,90126.0,1.66274346]
[1763439465383,0.05052229,90135.0,90126.0,1.66274346]
[1763439465566,0.02733229,90134.0,90126.0,1.66274346]
[1763439465771,0.02733229,90133.0,90132.0,0.02201]
[1763439465982,0.02733229,90135.0,90132.0,0.02201]
[1763439467380,0.04427,90133.0,90126.0,1.66274346]
[1763439467581,0.02733229,90132.0,90126.0,1.66274346]
[1763439467878,0.04427,90127.0,90126.0,1.50027739]
[1763439468073,0.07160229,90127.0,90126.0,1.50027739]
[1763439468786,0.07160229,90127.0,90126.0,1.5]
[1763439469078,0.07160229,90127.0,90081.0,0.1111436]
[1763439469079,0.00999999,90070.0,90050.0,0.16246607]
[1763439469286,0.00999999,90070.0,90049.0,0.01379]
[1763439469287,0.01219802,90060.0,90049.0,0.01379]
[1763439469472,0.09071447,90060.0,90059.0,0.04333]
[1763439469678,0.00016647,90069.0,90068.0,0.04333]
[1763439469873,0.06945021,90090.0,90066.0,0.01379]
[1763439469874,0.02748934,90080.0,90076.0,0.04333]
[1763439470179,0.02748896,90079.0,90066.0,0.01379]
[1763439470379,0.0275855,90078.0,90066.0,0.01379]
[1763439470577,0.0275855,90078.0,90076.0,0.04333]
[1763439470578,0.02748896,90077.0,90076.0,0.04333]
[1763439470882,0.00016657,90086.0,90083.0,0.01379]
[1763439471178,0.04427,90076.0,90075.0,0.00016647]
[1763439471378,0.00999999,90060.0,90049.0,0.05712]
[1763439471587,0.1469159,90060.0,90049.0,0.01379]
[1763439471880,0.1469159,90060.0,90040.0,0.16246607]
[1763439471881,0.00999999,90050.0,90008.0,0.1112347]
[1763439472080,0.00999999,90050.0,90039.0,0.04333]
[1763439472081,0.00219803,90040.0,90039.0,0.04333]
[1763439473278,0.00016657,90049.0,90039.0,0.04333]
[1763439473476,0.00016657,90049.0,90048.0,0.04333]
[1763439473976,0.00016657,90049.0,90039.0,0.16246607]
[1763439474281,0.00016657,90049.0,90007.0,1.5]
[1763439474282,0.00999999,90040.0,90020.0,0.16246607]
[1763439474486,0.01219802,90040.0,90027.0,0.15328]
[1763439474674,0.01219802,90040.0,90030.0,0.16246607]
[1763439474982,0.01219802,90040.0,90039.0,0.02201]
[1763439475169,0.00219803,90040.0,90039.0,0.04333]
[1763439476179,0.00016657,90049.0,90048.0,0.04333]
[1763439477280,0.01115506,90081.0,90039.0,0.16246607]
[1763439477281,0.00999999,90070.0,90059.0,0.04345]
[1763439477487,0.01219802,90070.0,90060.0,0.16246607]
[1763439477678,0.00999999,90060.0,90052.0,0.27244]
[1763439477877,0.01219802,90060.0,90052.0,0.27244]
[1763439478271,0.01219802,90060.0,90026.0,0.00011464]
[1763439478272,0.01219802,90060.0,90047.0,0.00016657]
[1763439478472,0.04235,90048.0,90047.0,0.00016657]
[1763439478679,0.00219803,90050.0,90049.0,0.0607]
[1763439479778,0.00016657,90065.0,90064.0,0.02135]
[1763439479979,0.00016657,90065.0,90064.0,0.04345]
[1763439480290,0.03958934,90095.0,90064.0,0.0607]
[1763439480483,0.00219803,90090.0,90080.0,0.16246607]
[1763439480787,0.17785567,90090.0,90080.0,0.17971607]
[1763439480983,0.01219802,90090.0,90070.0,0.16246607]
[1763439481178,0.00999999,90080.0,90079.0,0.04345]
[1763439481475,0.00219803,90080.0,90070.0,0.16246607]
[1763439481684,0.01219802,90080.0,90070.0,0.16263264]
[1763439482088,0.01219802,90080.0,90079.0,0.04345]
[1763439482485,0.00219803,90080.0,90079.0,0.04345]
[1763439482979,0.03346802,90080.0,90070.0,0.2050378]
[1763439483180,0.03346802,90080.0,90070.0,0.00016657]
[1763439483386,0.04235,90071.0,90070.0,0.00016657]
[1763439483688,0.00999999,90080.0,90070.0,0.00016657]
[1763439483878,0.02710869,90079.0,90070.0,0.00016657]
[1763439484075,0.01219802,90080.0,90070.0,0.00016657]
[1763439484387,0.02710839,90079.0,90070.0,0.00016657]
[1763439484581,0.01219802,90080.0,90079.0,0.04345]
[1763439484780,0.02932028,90080.0,90079.0,0.04345]
[1763439485782,0.00016657,90089.0,90088.0,0.04345]
[1763439486184,0.03958934,90115.0,90088.0,0.04345]
[1763439486380,0.00219803,90110.0,90109.0,0.04345]
[1763439486581,0.02714403,90110.0,90100.0,0.20487123]
[1763439486784,0.00999999,90130.0,90119.0,0.02135]
[1763439486990,0.10177601,90130.0,90119.0,0.02135]
[1763439487294,0.01219802,90130.0,90129.0,0.02135]
[1763439487486,0.00219803,90130.0,90129.0,0.02135]
[1763439487687,0.01219802,90130.0,90115.0,0.00016647]
[1763439488087,0.00999999,90100.0,90090.0,0.20487123]
[1763439488391,0.00219803,90100.0,90099.0,0.04345]
[1763439488980,0.00219803,90100.0,90099.0,0.02135]
[1763439489596,0.00219803,90100.0,90099.0,0.04345]
[1763439492397,0.03346802,90100.0,90090.0,0.2050377]
[1763439492596,0.00219803,90100.0,90099.0,0.04345]
[1763439493389,0.00016647,90109.0,90108.0,0.04345]
[1763439493590,0.03958934,90116.0,90115.0,0.04345]
[1763439493802,0.05539,90133.0,90128.0,0.01233]
[1763439493994,0.05539,90133.0,90132.0,0.04345]
[1763439494193,0.05539,90133.0,90128.0,0.01233]
[1763439494194,0.00219803,90130.0,90128.0,0.01233]
[1763439494394,0.00219803,90130.0,90129.0,0.04345]
[1763439495097,0.02346803,90130.0,90120.0,0.00016647]
[1763439495291,0.03346802,90130.0,90120.0,0.00016647]
[1763439495594,0.03346802,90130.0,90120.0,0.2050377]
[1763439495795,0.03346802,90130.0,90120.0,0.00016647]
[1763439495995,0.01219802,90130.0,90120.0,0.02151647]
[1763439496692,0.07164824,90130.0,90120.0,0.02151647]
[1763439496902,0.00219803,90130.0,90129.0,0.04345]
[1763439498089,0.00016647,90139.0,90138.0,0.04345]
[1763439498401,0.3608,90145.0,90144.0,0.04345]
[1763439498787,0.38759836,90145.0,90144.0,0.04345]
[1763439501393,0.00219803,90140.0,90139.0,0.05553]
[1763439501597,0.03048803,90140.0,90139.0,0.02807]
[1763439501804,0.03048803,90140.0,90082.0,0.3608]
[1763439501805,0.05473,90121.0,90082.0,0.3608]
[1763439502102,0.05473,90121.0,90070.0,0.3608]
[1763439502103,0.00999999,90090.0,90070.0,0.20487123]
[1763439502396,0.00219803,90080.0,90079.0,0.05553]
[1763439502597,0.3608,90077.0,90060.0,0.22216123]
[1763439502812,0.3608,90067.0,90050.0,0.20487123]
[1763439502991,0.01219802,90060.0,90050.0,0.20487123]
[1763439503702,0.00219803,90060.0,90059.0,0.02807]
[1763439504102,0.02899424,90060.0,90059.0,0.02807]
[1763439505699,0.00010807,90066.0,90065.0,0.05553]
[1763439505904,0.00016647,90068.0,90067.0,0.05553]
[1763439506203,0.00016647,90068.0,90067.0,0.41633]
[1763439507397,0.3608,90085.0,90077.0,0.1111494]
[1763439507701,0.3608,90113.0,90112.0,0.00494]
[1763439507901,0.3608,90123.0,90119.0,0.00494]
[1763439508206,0.3608,90123.0,90095.0,0.27256]
[1763439508207,0.02734,90091.0,90090.0,0.20487123]
[1763439508400,0.00219803,90090.0,90081.0,0.3608]
[1763439508706,0.00016645,90095.0,90094.0,0.00988]
[1763439509095,0.00219803,90090.0,90082.0,1.5]
[1763439509296,0.05577,90083.0,90082.0,1.5]